[Event "EYCC Girls-U14 2019"]
[Site "Bratislava"]
[Date "2019.08.02"]
[Round "1.8"]
[White "Blokhin, Sofia"]
[Black "Mironenko, Galina"]
[Result "0-1"]
[ECO "B06"]
[WhiteElo "1725"]
[BlackElo "1995"]
[Annotator "NA"]
[PlyCount "58"]
[EventDate "2019.08.02"]
[EventType "swiss"]
[EventCountry "SVK"]
[SourceTitle "playchess.com"]
[Source "ChessBase"]
[SourceQuality "1"]
[TimeControl "40/5400+30:1800+30"]

1. e4 {[%emt 0:00:00]} g6 {[%emt 0:00:00]} 2. d4 {[%emt 0:00:00]} Bg7 {[%emt 0:00:00]} 3. Nc3 {[%emt 0:00:00]} d6 {[%emt 0:00:00]} 4. f3 {[%emt 0:00:36]} a6 {[%emt 0:00:00]} 5. Be3 {[%emt 0:00:26]} b5 {[%emt 0:00:01]} 6. Qd2 {[%emt 0:00:55]} Bb7 {[%emt 0:00:14]} 7. O-O-O {[%emt 0:00:52]} Nd7 {[%emt 0:00:23]} 8. g4 {[%emt 0:01:33]} h5 {[%emt 0:04:05]} 9. gxh5 {[%emt 0:03:33]} Rxh5 {[%emt 0:01:46]} 10. Nge2 {[%emt 0:02:10]} Ngf6 {[%emt 0:06:21]} 11. Ng3 {[%emt 0:04:06]} Rh8 {[%emt 0:02:28]} 12. Be2 {[%emt 0:10:56]} c5 {[%emt 0:03:35]} 13. dxc5 {[%emt 0:03:21]} dxc5 {[%emt 0:02:11]} 14. h4 {[%emt 0:03:57]} Qc7 {[%emt 0:08:57]} 15. Qe1 {[%emt 0:07:52]} b4 {[%emt 0:05:59]} 16. Nb1 {[%emt 0:04:33]} Qe5 {[%emt 0:07:24]} 17. c3 {[%emt 0:05:53]} Rc8 {[%emt 0:08:42]} 18. Qf2 {[%emt 0:05:30]} Qe6 {[%emt 0:03:48]} 19. b3 {[%emt 0:04:08]} Qe5 {[%emt 0:07:05]} 20. f4 {[%emt 0:10:25]} Qc7 {[%emt 0:03:02]} 21. Qg2 {[%emt 0:10:29]} Qa5 {[%emt 0:04:26]} 22. h5 {[%emt 0:01:32]} Qxa2 {[%emt 0:12:02]} 23. hxg6 {[%emt 0:01:06]} bxc3 {[%emt 0:10:00]} 24. gxf7+ {[%emt 0:00:44]} Kf8 {[%emt 0:00:20]} 25. Nxc3 {[%emt 0:01:25]} Qxb3 {[%emt 0:02:45]} 26. Bd2 {[%emt 0:00:57]} Nh7 {[%emt 0:03:31]} 27. Qf3 {[%emt 0:02:21]} Rb8 {[%emt 0:00:39]} 28. Rdg1 {[%emt 0:02:54]} Bc6 {[%emt 0:01:15]} 29. Nf5 {[%emt 0:02:28]} Ba4 {[%emt 0:00:24]} 0-1

[Event "EYCC Girls-U14 2019"]
[Site "Bratislava"]
[Date "2019.08.02"]
[Round "1.9"]
[White "Bashylina, Luisa"]
[Black "Gasparyan, Milena"]
[Result "1/2-1/2"]
[ECO "B10"]
[WhiteElo "1989"]
[BlackElo "1498"]
[Annotator "NA"]
[PlyCount "39"]
[EventDate "2019.08.02"]
[EventType "swiss"]
[EventCountry "SVK"]
[SourceTitle "playchess.com"]
[Source "ChessBase"]
[SourceQuality "1"]
[TimeControl "40/5400+30:1800+30"]

1. e4 {[%emt 0:00:00]} c6 {[%emt 0:00:00]} 2. Nf3 {[%emt 0:00:47]} d5 {[%emt 0:00:00]} 3. exd5 {[%emt 0:00:03]} cxd5 {[%emt 0:00:00]} 4. Ne5 {[%emt 0:00:52]} Nf6 {[%emt 0:02:21]} 5. d4 {[%emt 0:00:18]} e6 {[%emt 0:01:36]} 6. c3 {[%emt 0:03:38]} Bd6 {[%emt 0:01:59]} 7. Bg5 {[%emt 0:04:14]} O-O {[%emt 0:01:47]} 8. Bd3 {[%emt 0:01:27]} Nbd7 {[%emt 0:10:07]} 9. f4 {[%emt 0:05:38]} Qc7 {[%emt 0:01:03]} 10. Nd2 {[%emt 0:02:17]} Bxe5 {[%emt 0:19:47]} 11. fxe5 {[%emt 0:07:27]} Nxe5 {[%emt 0:00:22]} 12. Bc2 {[%emt 0:12:47]} Neg4 {[%emt 0:07:44]} 13. Bxf6 {[%emt 0:08:53]} Nxf6 {[%emt 0:00:09]} 14. O-O {[%emt 0:02:28]} e5 {[%emt 0:04:04]} 15. Rxf6 {[%emt 0:11:17]} gxf6 {[%emt 0:00:47]} 16. Qh5 {[%emt 0:00:26]} f5 {[%emt 0:06:14]} 17. Qg5+ {[%emt 0:00:24]} Kh8 {[%emt 0:00:08]} 18. Qf6+ {[%emt 0:00:11]} Kg8 {[%emt 0:00:09]} 19. Qg5+ {[%emt 0:01:16]} Kh8 {[%emt 0:00:07]} 20. Qf6+ {[%emt 0:00:05]} 1/2-1/2

[Event "EYCC Girls-U14 2019"]
[Site "Bratislava"]
[Date "2019.08.02"]
[Round "1.10"]
[White "Stastna, Martina"]
[Black "Lhotska, Anna"]
[Result "0-1"]
[ECO "B42"]
[WhiteElo "1654"]
[BlackElo "1922"]
[Annotator "NA"]
[PlyCount "128"]
[EventDate "2019.08.02"]
[EventType "swiss"]
[EventCountry "SVK"]
[SourceTitle "playchess.com"]
[Source "ChessBase"]
[SourceQuality "1"]
[TimeControl "40/5400+30:1800+30"]

1. e4 {[%emt 0:00:00]} c5 {[%emt 0:00:00]} 2. Nf3 {[%emt 0:00:00]} e6 {[%emt 0:00:00]} 3. d4 {[%emt 0:00:25]} cxd4 {[%emt 0:00:00]} 4. Nxd4 {[%emt 0:00:11]} a6 {[%emt 0:00:00]} 5. Bd3 {[%emt 0:00:52]} Nf6 {[%emt 0:00:54]} 6. O-O {[%emt 0:01:27]} Qc7 {[%emt 0:00:40]} 7. Nc3 {[%emt 0:01:17]} Be7 {[%emt 0:02:43]} 8. Qe2 {[%emt 0:02:44]} d6 {[%emt 0:03:56]} 9. Kh1 {[%emt 0:06:36]} b5 {[%emt 0:04:59]} 10. a3 {[%emt 0:03:53]} Bb7 {[%emt 0:01:39]} 11. f4 {[%emt 0:03:29]} Nbd7 {[%emt 0:02:16]} 12. Bd2 {[%emt 0:07:52]} Nc5 {[%emt 0:10:31]} 13. Rae1 {[%emt 0:04:54]} O-O {[%emt 0:07:36]} 14. b4 {[%emt 0:07:59]} Nxd3 {[%emt 0:05:06]} 15. cxd3 {[%emt 0:05:02]} Rac8 {[%emt 0:02:56]} 16. Rc1 {[%emt 0:01:37]} Qb8 {[%emt 0:01:24]} 17. f5 {[%emt 0:03:11]} e5 {[%emt 0:01:44]} 18. Nf3 {[%emt 0:03:14]} Bd8 {[%emt 0:14:56]} 19. Bg5 {[%emt 0:04:04]} h6 {[%emt 0:06:03]} 20. Bh4 {[%emt 0:06:56]} Nd7 {[%emt 0:04:22]} 21. Bxd8 {[%emt 0:02:24]} Rfxd8 {[%emt 0:00:19]} 22. Rfe1 {[%emt 0:04:52]} Qa8 {[%emt 0:02:14]} 23. Qb2 {[%emt 0:04:21]} Re8 {[%emt 0:05:06]} 24. a4 {[%emt 0:08:00]} bxa4 {[%emt 0:00:45]} 25. Nxa4 {[%emt 0:00:21]} d5 {[%emt 0:05:13]} 26. Rxc8 {[%emt 0:01:55]} Qxc8 {[%emt 0:01:07]} 27. Nc5 {[%emt 0:05:26]} Nxc5 {[%emt 0:02:37]} 28. bxc5 {[%emt 0:00:18]} dxe4 {[%emt 0:00:33]} 29. dxe4 {[%emt 0:00:36]} f6 {[%emt 0:03:12]} 30. Nd2 {[%emt 0:01:15]} Rd8 {[%emt 0:00:41]} 31. Nb3 {[%emt 0:01:24]} Bxe4 {[%emt 0:00:34]} 32. Qc3 {[%emt 0:04:08]} Bxf5 {[%emt 0:06:42]} 33. c6 {[%emt 0:01:13]} Qc7 {[%emt 0:00:44]} 34. Qc4+ {[%emt 0:00:59]} Kh7 {[%emt 0:00:31]} 35. Qxa6 {[%emt 0:01:42]} Rb8 {[%emt 0:01:22]} 36. Qc4 {[%emt 0:01:05]} Bg6 {[%emt 0:01:41]} 37. h3 {[%emt 0:02:03]} Bf7 {[%emt 0:00:42]} 38. Qd3+ {[%emt 0:00:12]} Kh8 {[%emt 0:00:09]} 39. Qd7 {[%emt 0:01:01]} Qxd7 {[%emt 0:00:40]} 40. cxd7 {[%emt 0:00:00]} Bxb3 {[%emt 0:00:00]} 41. Rb1 {[%emt 0:00:09]} Rd8 {[%emt 0:00:39]} 42. Rxb3 {[%emt 0:00:24]} Rxd7 {[%emt 0:00:08]} 43. Kg1 {[%emt 0:01:26]} Kh7 {[%emt 0:04:17]} 44. Kf2 {[%emt 0:02:51]} Kg6 {[%emt 0:01:33]} 45. Rg3+ {[%emt 0:01:55]} Kf5 {[%emt 0:01:01]} 46. Rf3+ {[%emt 0:01:04]} Ke6 {[%emt 0:00:26]} 47. Ra3 {[%emt 0:01:00]} f5 {[%emt 0:01:59]} 48. Ra6+ {[%emt 0:01:21]} Rd6 {[%emt 0:00:18]} 49. Ra7 {[%emt 0:00:30]} Kf6 {[%emt 0:00:25]} 50. Ke3 {[%emt 0:00:34]} g5 {[%emt 0:01:11]} 51. Ra3 {[%emt 0:01:02]} f4+ {[%emt 0:01:15]} 52. Kf3 {[%emt 0:00:25]} h5 {[%emt 0:01:04]} 53. g4 {[%emt 0:00:53]} fxg3 {[%emt 0:00:18]} 54. Kxg3 {[%emt 0:00:11]} e4 {[%emt 0:01:36]} 55. Kf2 {[%emt 0:01:17]} Rd3 {[%emt 0:02:17]} 56. Ra6+ {[%emt 0:01:20]} Kf5 {[%emt 0:00:33]} 57. Ra5+ {[%emt 0:00:11]} Kf4 {[%emt 0:00:41]} 58. h4 {[%emt 0:00:17]} g4 {[%emt 0:05:06]} 59. Rxh5 {[%emt 0:01:22]} g3+ {[%emt 0:00:19]} 60. Ke1 {[%emt 0:00:31]} g2 {[%emt 0:01:51]} 61. Kf2 {[%emt 0:00:55]} Rd2+ {[%emt 0:00:16]} 62. Kg1 {[%emt 0:00:13]} Kg3 {[%emt 0:01:00]} 63. Rg5+ {[%emt 0:01:06]} Kh3 {[%emt 0:00:13]} 64. h5 {[%emt 0:00:39]} e3 {[%emt 0:00:31]} 0-1

[Event "EYCC Girls-U14 2019"]
[Site "Bratislava"]
[Date "2019.08.02"]
[Round "1.11"]
[White "Toth, Nikoletta"]
[Black "Marthinussen, Emma Viktoria Lia"]
[Result "1-0"]
[ECO "A45"]
[WhiteElo "2023"]
[BlackElo "1645"]
[Annotator "NA"]
[PlyCount "75"]
[EventDate "2019.08.02"]
[EventType "swiss"]
[EventCountry "SVK"]
[SourceTitle "playchess.com"]
[Source "ChessBase"]
[SourceQuality "1"]
[TimeControl "40/5400+30:1800+30"]

1. d4 {[%emt 0:00:00]} Nf6 {[%emt 0:00:15]} 2. Bf4 {[%emt 0:00:00]} g6 {[%emt 0:00:31]} 3. e3 {[%emt 0:00:11]} Bg7 {[%emt 0:00:22]} 4. Nf3 {[%emt 0:00:26]} O-O {[%emt 0:01:07]} 5. Be2 {[%emt 0:00:40]} d6 {[%emt 0:04:19]} 6. h3 {[%emt 0:00:08]} c5 {[%emt 0:04:44]} 7. c3 {[%emt 0:03:06]} b6 {[%emt 0:03:26]} 8. O-O {[%emt 0:01:09]} Bb7 {[%emt 0:01:20]} 9. Nbd2 {[%emt 0:00:25]} Na6 {[%emt 0:11:26]} 10. a4 {[%emt 0:03:36]} Nc7 {[%emt 0:02:04]} 11. Qb3 {[%emt 0:01:05]} Rb8 {[%emt 0:09:06]} 12. Qa3 {[%emt 0:06:19]} Ba8 {[%emt 0:05:30]} 13. b4 {[%emt 0:04:33]} Ne6 {[%emt 0:03:58]} 14. Bh2 {[%emt 0:00:49]} Qd7 {[%emt 0:21:14]} 15. Rac1 {[%emt 0:14:33]} Bc6 {[%emt 0:04:09]} 16. dxc5 {[%emt 0:02:02]} bxc5 {[%emt 0:00:48]} 17. b5 {[%emt 0:00:16]} Bb7 {[%emt 0:00:58]} 18. a5 {[%emt 0:05:31]} Nc7 {[%emt 0:08:00]} 19. c4 {[%emt 0:01:21]} Ne4 {[%emt 0:03:47]} 20. Nxe4 {[%emt 0:08:45]} Bxe4 {[%emt 0:00:16]} 21. Nd2 {[%emt 0:00:13]} Ba8 {[%emt 0:01:44]} 22. Rb1 {[%emt 0:01:42]} Qc8 {[%emt 0:04:14]} 23. Rb3 {[%emt 0:04:59]} Qb7 {[%emt 0:03:12]} 24. Bf3 {[%emt 0:08:13]} Qc8 {[%emt 0:00:03]} 25. Bxa8 {[%emt 0:03:57]} Nxa8 {[%emt 0:01:04]} 26. Rfb1 {[%emt 0:01:00]} Qc7 {[%emt 0:01:34]} 27. Ne4 {[%emt 0:02:57]} Rfc8 {[%emt 0:01:19]} 28. Nc3 {[%emt 0:01:18]} Bxc3 {[%emt 0:02:01]} 29. Rxc3 {[%emt 0:00:06]} Qd7 {[%emt 0:01:03]} 30. Rcb3 {[%emt 0:00:30]} Qd8 {[%emt 0:00:25]} 31. e4 {[%emt 0:01:21]} e5 {[%emt 0:00:49]} 32. Rd1 {[%emt 0:02:59]} Qe7 {[%emt 0:00:32]} 33. Qb2 {[%emt 0:03:25]} Qc7 {[%emt 0:00:28]} 34. Qd2 {[%emt 0:00:43]} Rd8 {[%emt 0:00:32]} 35. Rd3 {[%emt 0:00:20]} Rbc8 {[%emt 0:00:36]} 36. Bxe5 {[%emt 0:02:10]} Rd7 {[%emt 0:00:33]} 37. Bf6 {[%emt 0:02:57]} Re8 {[%emt 0:00:29]} 38. Qh6 {[%emt 0:00:10]} 1-0

[Event "EYCC Girls-U14 2019"]
[Site "Bratislava"]
[Date "2019.08.02"]
[Round "1.12"]
[White "Rozmanec, Pia"]
[Black "Pipiras, Filipa Fortuna"]
[Result "0-1"]
[ECO "B40"]
[WhiteElo "1550"]
[BlackElo "1980"]
[Annotator "NA"]
[PlyCount "110"]
[EventDate "2019.08.02"]
[EventType "swiss"]
[EventCountry "SVK"]
[SourceTitle "playchess.com"]
[Source "ChessBase"]
[SourceQuality "1"]
[TimeControl "40/5400+30:1800+30"]

1. e4 {[%emt 0:00:00]} c5 {[%emt 0:03:40]} 2. Nf3 {[%emt 0:00:00]} e6 {[%emt 0:01:04]} 3. d4 {[%emt 0:00:40]} cxd4 {[%emt 0:00:32]} 4. Nxd4 {[%emt 0:00:10]} Nf6 {[%emt 0:01:05]} 5. Nc3 {[%emt 0:01:51]} Nc6 {[%emt 0:00:52]} 6. Be3 {[%emt 0:06:28]} Bb4 {[%emt 0:07:23]} 7. Nxc6 {[%emt 0:09:57]} bxc6 {[%emt 0:01:58]} 8. Qd4 {[%emt 0:06:38]} c5 {[%emt 0:22:00]} 9. Qd3 {[%emt 0:06:47]} d5 {[%emt 0:06:52]} 10. exd5 {[%emt 0:05:59]} exd5 {[%emt 0:01:13]} 11. O-O-O {[%emt 0:08:30]} Be6 {[%emt 0:08:54]} 12. Bf4 {[%emt 0:17:00]} O-O {[%emt 0:02:47]} 13. Be2 {[%emt 0:03:33]} Qa5 {[%emt 0:03:43]} 14. a3 {[%emt 0:05:30]} Bxc3 {[%emt 0:02:03]} 15. Qxc3 {[%emt 0:01:07]} Qxc3 {[%emt 0:00:37]} 16. bxc3 {[%emt 0:00:06]} Ne4 {[%emt 0:00:08]} 17. Bg3 {[%emt 0:02:59]} Nxc3 {[%emt 0:01:15]} 18. Rde1 {[%emt 0:00:52]} Ne4 {[%emt 0:02:26]} 19. Bf3 {[%emt 0:02:07]} Nxg3 {[%emt 0:00:16]} 20. hxg3 {[%emt 0:00:11]} Rab8 {[%emt 0:00:30]} 21. Be2 {[%emt 0:02:57]} Rfe8 {[%emt 0:02:37]} 22. f4 {[%emt 0:00:50]} d4 {[%emt 0:04:26]} 23. Bf3 {[%emt 0:03:29]} Bd7 {[%emt 0:05:35]} 24. Rxe8+ {[%emt 0:02:38]} Rxe8 {[%emt 0:00:20]} 25. Rh5 {[%emt 0:00:30]} Rc8 {[%emt 0:05:46]} 26. Re5 {[%emt 0:01:06]} Kf8 {[%emt 0:00:38]} 27. Kd2 {[%emt 0:01:46]} f6 {[%emt 0:00:41]} 28. Re1 {[%emt 0:00:44]} Bc6 {[%emt 0:02:20]} 29. Bxc6 {[%emt 0:03:35]} Rxc6 {[%emt 0:00:02]} 30. c3 {[%emt 0:00:04]} Ra6 {[%emt 0:01:38]} 31. Ra1 {[%emt 0:00:06]} Ke7 {[%emt 0:00:53]} 32. cxd4 {[%emt 0:00:23]} cxd4 {[%emt 0:00:06]} 33. Kd3 {[%emt 0:00:06]} Ra4 {[%emt 0:00:09]} 34. Kc2 {[%emt 0:00:43]} Rc4+ {[%emt 0:00:36]} 35. Kd3 {[%emt 0:00:40]} Rc3+ {[%emt 0:00:14]} 36. Kxd4 {[%emt 0:00:06]} Rxg3 {[%emt 0:00:07]} 37. Ra2 {[%emt 0:00:05]} g5 {[%emt 0:02:14]} 38. fxg5 {[%emt 0:01:04]} fxg5 {[%emt 0:00:08]} 39. Ke4 {[%emt 0:00:53]} Ke6 {[%emt 0:00:25]} 40. a4 {[%emt 0:00:00]} a5 {[%emt 0:00:00]} 41. Kd4 {[%emt 0:02:36]} Rg4+ {[%emt 0:07:35]} 42. Ke3 {[%emt 0:05:47]} h5 {[%emt 0:01:05]} 43. Kf3 {[%emt 0:00:25]} Rb4 {[%emt 0:01:07]} 44. Ra1 {[%emt 0:00:54]} Kd5 {[%emt 0:00:53]} 45. Rd1+ {[%emt 0:03:46]} Rd4 {[%emt 0:02:02]} 46. Rb1 {[%emt 0:00:52]} Rb4 {[%emt 0:02:42]} 47. Rd1+ {[%emt 0:01:31]} Kc5 {[%emt 0:02:12]} 48. Re1 {[%emt 0:02:40]} Rf4+ {[%emt 0:00:52]} 49. Kg3 {[%emt 0:00:37]} Kb4 {[%emt 0:00:21]} 50. Re5 {[%emt 0:01:45]} Rg4+ {[%emt 0:02:54]} 51. Kf3 {[%emt 0:00:10]} Kxa4 {[%emt 0:00:09]} 52. Re8 {[%emt 0:01:30]} Kb3 {[%emt 0:01:01]} 53. Rh8 {[%emt 0:00:18]} Rf4+ {[%emt 0:00:20]} 54. Kg3 {[%emt 0:01:15]} h4+ {[%emt 0:00:25]} 55. Kh3 {[%emt 0:00:13]} a4 {[%emt 0:00:08]} 0-1

[Event "EYCC Girls-U14 2019"]
[Site "Bratislava"]
[Date "2019.08.02"]
[Round "1.13"]
[White "Kirchei, Viktoriia"]
[Black "Johansson-Ohman, Linnea"]
[Result "1-0"]
[ECO "B13"]
[WhiteElo "2006"]
[BlackElo "1529"]
[Annotator "NA"]
[PlyCount "87"]
[EventDate "2019.08.02"]
[EventType "swiss"]
[EventCountry "SVK"]
[SourceTitle "playchess.com"]
[Source "ChessBase"]
[SourceQuality "1"]
[TimeControl "40/5400+30:1800+30"]

1. e4 {[%emt 0:00:00]} c6 {[%emt 0:00:00]} 2. d4 {[%emt 0:00:00]} d5 {[%emt 0:00:03]} 3. exd5 {[%emt 0:00:33]} cxd5 {[%emt 0:00:09]} 4. Bd3 {[%emt 0:00:13]} Nc6 {[%emt 0:00:42]} 5. c3 {[%emt 0:00:20]} Nf6 {[%emt 0:02:02]} 6. h3 {[%emt 0:00:14]} e6 {[%emt 0:08:08]} 7. Nf3 {[%emt 0:00:47]} Bd6 {[%emt 0:01:12]} 8. O-O {[%emt 0:00:10]} h6 {[%emt 0:05:13]} 9. Re1 {[%emt 0:01:04]} O-O {[%emt 0:00:20]} 10. Ne5 {[%emt 0:01:39]} Nd7 {[%emt 0:15:12]} 11. f4 {[%emt 0:02:40]} f5 {[%emt 0:09:28]} 12. Nxc6 {[%emt 0:02:13]} bxc6 {[%emt 0:00:06]} 13. Rxe6 {[%emt 0:02:29]} Nf6 {[%emt 0:00:24]} 14. Re1 {[%emt 0:00:49]} Ne4 {[%emt 0:00:46]} 15. Be3 {[%emt 0:03:06]} Rb8 {[%emt 0:04:06]} 16. Qc1 {[%emt 0:27:33]} Qh4 {[%emt 0:01:16]} 17. Rf1 {[%emt 0:03:31]} Rf6 {[%emt 0:09:51]} 18. Nd2 {[%emt 0:07:10]} Rg6 {[%emt 0:04:59]} 19. Rf3 {[%emt 0:01:13]} Bd7 {[%emt 0:14:55]} 20. Nf1 {[%emt 0:08:21]} Re8 {[%emt 0:03:03]} 21. c4 {[%emt 0:01:45]} Be6 {[%emt 0:09:07]} 22. c5 {[%emt 0:01:20]} Bc7 {[%emt 0:00:34]} 23. b4 {[%emt 0:00:15]} a5 {[%emt 0:03:14]} 24. a3 {[%emt 0:07:06]} Rf6 {[%emt 0:01:33]} 25. Rb1 {[%emt 0:02:01]} Rff8 {[%emt 0:01:55]} 26. b5 {[%emt 0:03:12]} cxb5 {[%emt 0:00:43]} 27. Bxb5 {[%emt 0:01:20]} Rb8 {[%emt 0:00:04]} 28. Bd2 {[%emt 0:05:42]} Bf7 {[%emt 0:01:45]} 29. Qe1 {[%emt 0:05:18]} Qxe1 {[%emt 0:01:48]} 30. Bxe1 {[%emt 0:00:06]} Bh5 {[%emt 0:00:09]} 31. Rfb3 {[%emt 0:00:11]} Bxf4 {[%emt 0:00:46]} 32. Bxa5 {[%emt 0:00:09]} Be8 {[%emt 0:01:46]} 33. a4 {[%emt 0:01:09]} Ra8 {[%emt 0:00:16]} 34. Bb6 {[%emt 0:01:07]} Bd2 {[%emt 0:00:46]} 35. Rd3 {[%emt 0:03:43]} Ba5 {[%emt 0:00:33]} 36. Bxa5 {[%emt 0:00:26]} Rxa5 {[%emt 0:00:04]} 37. Ne3 {[%emt 0:00:15]} Bf7 {[%emt 0:00:53]} 38. Nxf5 {[%emt 0:00:25]} Rb8 {[%emt 0:00:35]} 39. Ne7+ {[%emt 0:00:12]} Kf8 {[%emt 0:00:27]} 40. Nc6 {[%emt 0:00:00]} Raxb5 {[%emt 0:00:00]} 41. axb5 {[%emt 0:00:28]} Rb7 {[%emt 0:02:48]} 42. Na5 {[%emt 0:00:56]} Rb8 {[%emt 0:00:59]} 43. b6 {[%emt 0:00:26]} Nf6 {[%emt 0:05:22]} 44. Rdb3 {[%emt 0:01:56]} 1-0

[Event "EYCC Girls-U14 2019"]
[Site "Bratislava"]
[Date "2019.08.02"]
[Round "1.14"]
[White "Larre, Linnea"]
[Black "Zhou, Lulu"]
[Result "0-1"]
[ECO "A20"]
[WhiteElo "1648"]
[BlackElo "1944"]
[Annotator "NA"]
[PlyCount "52"]
[EventDate "2019.08.02"]
[EventType "swiss"]
[EventCountry "SVK"]
[SourceTitle "playchess.com"]
[Source "ChessBase"]
[SourceQuality "1"]
[TimeControl "40/5400+30:1800+30"]

1. c4 {[%emt 0:00:00]} e5 {[%emt 0:00:00]} 2. g3 {[%emt 0:00:00]} d6 {[%emt 0:00:00]} 3. Bg2 {[%emt 0:00:26]} g6 {[%emt 0:00:00]} 4. Nc3 {[%emt 0:00:39]} Bg7 {[%emt 0:00:02]} 5. Nf3 {[%emt 0:01:01]} f5 {[%emt 0:00:26]} 6. d3 {[%emt 0:01:36]} h6 {[%emt 0:03:05]} 7. Bd2 {[%emt 0:07:57]} Nf6 {[%emt 0:00:13]} 8. Qc1 {[%emt 0:04:25]} g5 {[%emt 0:04:06]} 9. O-O {[%emt 0:02:15]} O-O {[%emt 0:00:12]} 10. b4 {[%emt 0:03:32]} Nc6 {[%emt 0:00:25]} 11. a3 {[%emt 0:01:31]} Ne7 {[%emt 0:00:24]} 12. Qc2 {[%emt 0:10:27]} Ng6 {[%emt 0:04:23]} 13. Rac1 {[%emt 0:06:41]} Be6 {[%emt 0:06:17]} 14. e4 {[%emt 0:09:09]} f4 {[%emt 0:01:57]} 15. Ne1 {[%emt 0:04:51]} Qd7 {[%emt 0:00:26]} 16. f3 {[%emt 0:02:08]} Bh3 {[%emt 0:02:04]} 17. g4 {[%emt 0:01:43]} Bxg2 {[%emt 0:00:09]} 18. Nxg2 {[%emt 0:00:11]} h5 {[%emt 0:00:20]} 19. h3 {[%emt 0:00:42]} hxg4 {[%emt 0:02:29]} 20. hxg4 {[%emt 0:00:33]} Nxg4 {[%emt 0:08:00]} 21. fxg4 {[%emt 0:17:40]} Qxg4 {[%emt 0:00:09]} 22. Rf2 {[%emt 0:06:57]} f3 {[%emt 0:01:21]} 23. Nd5 {[%emt 0:01:37]} Nf4 {[%emt 0:15:52]} 24. Bxf4 {[%emt 0:01:29]} exf4 {[%emt 0:01:04]} 25. Qd1 {[%emt 0:03:51]} Bd4 {[%emt 0:00:44]} 26. Rcc2 {[%emt 0:00:07]} Qxg2# {[%emt 0:00:12]} 0-1

[Event "EYCC Girls-U14 2019"]
[Site "Bratislava"]
[Date "2019.08.02"]
[Round "1.15"]
[White "Wikar, Martyna"]
[Black "Nielsen-Refs, Ingrid Elmer"]
[Result "1-0"]
[ECO "B53"]
[WhiteElo "2020"]
[BlackElo "1593"]
[Annotator "NA"]
[PlyCount "73"]
[EventDate "2019.08.02"]
[EventType "swiss"]
[EventCountry "SVK"]
[SourceTitle "playchess.com"]
[Source "ChessBase"]
[SourceQuality "1"]
[TimeControl "40/5400+30:1800+30"]

1. e4 {[%emt 0:00:00]} c5 {[%emt 0:00:00]} 2. Nf3 {[%emt 0:00:11]} d6 {[%emt 0:00:24]} 3. d4 {[%emt 0:00:38]} cxd4 {[%emt 0:00:24]} 4. Qxd4 {[%emt 0:01:27]} a6 {[%emt 0:04:19]} 5. Be3 {[%emt 0:05:01]} Nc6 {[%emt 0:02:44]} 6. Qd2 {[%emt 0:01:58]} Nf6 {[%emt 0:01:51]} 7. Nc3 {[%emt 0:00:25]} e6 {[%emt 0:00:59]} 8. a4 {[%emt 0:01:35]} Be7 {[%emt 0:02:39]} 9. Be2 {[%emt 0:04:28]} b6 {[%emt 0:02:35]} 10. Nd4 {[%emt 0:01:55]} Bb7 {[%emt 0:03:42]} 11. O-O {[%emt 0:05:57]} O-O {[%emt 0:03:37]} 12. Rad1 {[%emt 0:07:56]} Ne5 {[%emt 0:12:10]} 13. f4 {[%emt 0:05:05]} Ned7 {[%emt 0:02:17]} 14. Bf3 {[%emt 0:03:56]} Nc5 {[%emt 0:03:11]} 15. e5 {[%emt 0:01:56]} Nfe4 {[%emt 0:04:37]} 16. Nxe4 {[%emt 0:01:15]} Nxe4 {[%emt 0:02:36]} 17. Qd3 {[%emt 0:06:08]} d5 {[%emt 0:03:14]} 18. Bxe4 {[%emt 0:01:46]} dxe4 {[%emt 0:00:16]} 19. Qe2 {[%emt 0:03:51]} Qc7 {[%emt 0:02:41]} 20. Qg4 {[%emt 0:06:48]} f5 {[%emt 0:05:15]} 21. Qxg7+ {[%emt 0:06:40]} Kxg7 {[%emt 0:00:17]} 22. Nxe6+ {[%emt 0:00:07]} Kf7 {[%emt 0:01:14]} 23. Nxc7 {[%emt 0:00:09]} Rac8 {[%emt 0:01:25]} 24. Rd7 {[%emt 0:02:55]} Rg8 {[%emt 0:03:42]} 25. e6+ {[%emt 0:10:17]} Kf8 {[%emt 0:00:56]} 26. Nd5 {[%emt 0:01:32]} Bxd5 {[%emt 0:03:50]} 27. Rxd5 {[%emt 0:00:12]} Rxc2 {[%emt 0:01:11]} 28. Rf2 {[%emt 0:01:15]} Rc6 {[%emt 0:01:32]} 29. Rxf5+ {[%emt 0:00:13]} Ke8 {[%emt 0:01:04]} 30. Re5 {[%emt 0:02:18]} Rc4 {[%emt 0:00:43]} 31. g3 {[%emt 0:01:29]} Rb4 {[%emt 0:02:51]} 32. Rc2 {[%emt 0:01:39]} Rg7 {[%emt 0:03:26]} 33. Rc8+ {[%emt 0:00:26]} Bd8 {[%emt 0:00:10]} 34. Rd5 {[%emt 0:00:21]} Rxb2 {[%emt 0:03:16]} 35. Rdxd8+ {[%emt 0:00:46]} Ke7 {[%emt 0:00:17]} 36. Rd7+ {[%emt 0:00:17]} Kf6 {[%emt 0:01:26]} 37. Bd4+ 1-0

[Event "EYCC Girls-U14 2019"]
[Site "Bratislava"]
[Date "2019.08.02"]
[Round "1.16"]
[White "Varekha, Anna"]
[Black "Reuter, Elisa"]
[Result "1/2-1/2"]
[ECO "B31"]
[WhiteElo "1643"]
[BlackElo "1930"]
[Annotator "NA"]
[PlyCount "59"]
[EventDate "2019.08.02"]
[EventType "swiss"]
[EventCountry "SVK"]
[SourceTitle "playchess.com"]
[Source "ChessBase"]
[SourceQuality "1"]
[TimeControl "40/5400+30:1800+30"]

1. e4 {[%emt 0:00:00]} c5 {[%emt 0:00:00]} 2. Nf3 {[%emt 0:00:00]} Nc6 {[%emt 0:00:00]} 3. Bb5 {[%emt 0:00:00]} g6 {[%emt 0:00:00]} 4. Bxc6 {[%emt 0:00:01]} dxc6 {[%emt 0:00:00]} 5. h3 {[%emt 0:01:19]} Bg7 {[%emt 0:00:00]} 6. O-O {[%emt 0:01:57]} e5 {[%emt 0:00:00]} 7. d3 {[%emt 0:00:59]} Ne7 {[%emt 0:00:26]} 8. Be3 {[%emt 0:05:19]} b6 {[%emt 0:00:51]} 9. Nbd2 {[%emt 0:03:21]} O-O {[%emt 0:00:54]} 10. Nc4 {[%emt 0:02:04]} Qc7 {[%emt 0:01:30]} 11. a4 {[%emt 0:05:09]} a5 {[%emt 0:05:44]} 12. b4 {[%emt 0:10:02]} axb4 {[%emt 0:31:49]} 13. a5 {[%emt 0:00:31]} bxa5 {[%emt 0:03:14]} 14. Bxc5 {[%emt 0:01:15]} f6 {[%emt 0:04:06]} 15. Bb6 {[%emt 0:05:08]} Qb7 {[%emt 0:05:20]} 16. Bxa5 {[%emt 0:02:04]} Be6 {[%emt 0:01:22]} 17. Nfd2 {[%emt 0:04:43]} c5 {[%emt 0:06:30]} 18. c3 {[%emt 0:07:20]} Ra7 {[%emt 0:15:50]} 19. cxb4 {[%emt 0:11:34]} cxb4 {[%emt 0:00:17]} 20. Bb6 {[%emt 0:01:43]} Rxa1 {[%emt 0:00:43]} 21. Qxa1 {[%emt 0:00:12]} Ra8 {[%emt 0:00:39]} 22. Qb2 {[%emt 0:00:57]} Nc6 {[%emt 0:01:06]} 23. Be3 {[%emt 0:04:56]} Rd8 {[%emt 0:04:11]} 24. Qc2 {[%emt 0:02:49]} Bf8 {[%emt 0:01:20]} 25. Nb3 {[%emt 0:01:54]} Bf7 {[%emt 0:02:27]} 26. Ra1 {[%emt 0:04:01]} Qd7 {[%emt 0:04:24]} 27. Rd1 {[%emt 0:01:32]} Qb7 {[%emt 0:00:45]} 28. Ra1 {[%emt 0:07:53]} Qd7 {[%emt 0:00:17]} 29. Rd1 {[%emt 0:01:03]} Qb7 {[%emt 0:01:04]} 30. Ra1 1/2-1/2